bitfinex-derivatives/quotes_SOLF0:USTF0_20250626
["timestamp","ask_amount","ask_price","bid_price","bid_amount"]
[1750938490642,10.43939386,143.81,143.78,6.952]
[1750938491043,10.43939386,143.81,143.77,6.9523]
[1750938491447,10.43939386,143.81,143.74,3.48849386]
[1750938491645,6.9511,143.8,143.77,6.9524]
[1750938492956,10.43939386,143.81,143.78,6.9521]
[1750938493150,3.48849386,143.81,143.74,3.48849386]
[1750938493543,6.9512,143.8,143.77,6.9522]
[1750938495645,6.9516,143.79,143.76,6.9528]
[1750938497153,6.9516,143.79,143.77,6.9525]
[1750938498859,6.9513,143.8,143.77,6.9525]
[1750938499857,6.951,143.81,143.76,3.48849386]
[1750938500962,6.951,143.81,143.78,6.952]
[1750938504760,8.54584555,143.82,143.77,6.9524]
[1750938504967,3.48849386,143.82,143.77,6.9524]
[1750938505264,6.9511,143.81,143.78,6.952]
[1750938505764,3.48849386,143.83,143.76,3.48849386]
[1750938505963,38.64849386,143.83,143.76,3.48849386]
[1750938506265,6.9502,143.82,143.76,3.48849386]
[1750938506458,6.9502,143.82,143.79,6.9512]
[1750938507064,45.59839386,143.83,143.8,6.9511]
[1750938507365,43.74506314,143.83,143.8,6.9511]
[1750938508168,5.09656928,143.82,143.8,6.9511]
[1750938508664,40.25656928,143.83,143.8,6.9511]
[1750938508867,40.25656928,143.83,143.79,6.9514]
[1750938508868,6.9504,143.82,143.79,6.9514]
[1750938509661,6.9504,143.82,143.76,3.48849386]
[1750938509662,6.9504,143.82,143.8,6.9511]
[1750938510167,12.06589121,143.82,143.8,6.9511]
[1750938511059,5.11549121,143.82,143.8,6.9511]
[1750938511261,2.41314576,143.82,143.8,6.9511]
[1750938512366,39.5996456,143.83,143.8,6.9511]
[1750938512669,14.48530409,143.82,143.8,6.9511]
[1750938512968,6.9503,143.82,143.8,6.9511]
[1750938513164,5.12319717,143.81,143.8,6.9511]
[1750938513871,5.12319717,143.81,143.79,6.9513]
[1750938514072,6.9503,143.82,143.76,3.48849386]
[1750938514273,5.12582462,143.81,143.76,3.48849386]
[1750938514570,6.9503,143.82,143.76,3.48849386]
[1750938514770,5.12582462,143.81,143.76,3.48849386]
[1750938515069,6.9503,143.82,143.79,6.9511]
[1750938515272,7.54590241,143.81,143.79,6.9511]
[1750938515472,11.40691266,143.82,143.79,6.9511]
[1750938515674,7.54590241,143.81,143.8,6.9511]
[1750938515863,42.1099,143.83,143.8,6.9511]
[1750938516060,7.54572792,143.82,143.77,3.48849386]
[1750938516266,42.1099,143.83,143.81,6.9506]
[1750938516466,7.54716388,143.82,143.81,6.9506]
[1750938517576,7.54756282,143.82,143.81,6.9506]
[1750938518676,7.54756282,143.82,143.8,6.9509]
[1750938518871,11.40907328,143.83,143.8,6.9509]
[1750938519180,7.54965391,143.82,143.8,6.9509]
[1750938519375,6.9499,143.83,143.8,6.9509]
[1750938519576,7.55105191,143.82,143.8,6.9509]
[1750938519773,6.9502,143.82,143.79,6.9513]
[1750938519973,5.13234012,143.81,143.79,6.9513]
[1750938520275,6.9513,143.8,143.75,41.11589386]
[1750938521974,6.9508,143.81,143.75,47.5370069]
[1750938523179,2.42389317,143.8,143.76,6.42111304]
[1750938523374,11.42426857,143.82,143.79,6.9513]
[1750938523583,7.57165338,143.81,143.79,6.9513]
[1750938523782,11.42426857,143.82,143.79,6.9513]
[1750938524081,7.57157359,143.81,143.79,6.9513]
[1750938524282,6.9503,143.82,143.79,6.9513]
[1750938524478,7.57527067,143.81,143.8,6.9511]
[1750938528878,7.57527067,143.81,143.78,6.42111304]
[1750938529081,7.57527067,143.8,143.77,6.42111304]
[1750938529277,2.42499521,143.79,143.76,6.42111304]
[1750938529483,35.62,143.8,143.76,6.42111304]
[1750938529679,2.42983183,143.79,143.76,6.42111304]
[1750938529985,35.62,143.8,143.75,8.88851304]
[1750938530280,11.07339792,143.79,143.76,6.9528]
[1750938530478,7.58517959,143.78,143.76,6.9528]
[1750938530788,2.43004024,143.77,143.76,6.9528]
[1750938531284,2.43022854,143.77,143.76,6.9528]
[1750938531786,4.47918846,143.81,143.77,6.9521]
[1750938532080,12.07587797,143.8,143.76,6.49351574]
[1750938532282,7.59668951,143.79,143.77,6.49351574]
[1750938532487,7.59668951,143.78,143.77,13.44611574]
[1750938532984,6.9509,143.81,143.78,6.9518]
[1750938533179,12.07065008,143.8,143.78,6.9518]
[1750938533380,7.59702837,143.79,143.78,6.9518]
[1750938534182,2.4300252,143.79,143.78,6.9518]
[1750938538187,2.45361326,143.79,143.78,6.9518]
[1750938541390,2.45361326,143.79,143.77,13.44571574]
[1750938541592,2.45361326,143.78,143.77,13.44571574]
[1750938542582,4.47200786,143.81,143.79,6.9516]
[1750938542787,7.59522941,143.8,143.79,6.9516]
[1750938543192,7.59522941,143.8,143.78,6.9518]
[1750938543392,2.45753209,143.79,143.78,6.9518]
[1750938545891,6.9508,143.81,143.79,6.9515]
[1750938546192,7.60260378,143.8,143.79,6.9515]
[1750938547396,7.60260378,143.8,143.78,13.44531574]
[1750938547585,12.07631207,143.79,143.78,6.49351574]
[1750938547894,12.07631207,143.79,143.77,6.49351574]
[1750938548089,7.60338478,143.78,143.77,13.44571574]
[1750938549096,7.60338478,143.78,143.77,6.9522]
[1750938551888,6.9516,143.79,143.77,6.9522]
[1750938552095,35.62,143.82,143.78,6.952]
[1750938552096,6.9513,143.8,143.78,6.952]
[1750938552295,2.45801049,143.78,143.76,6.49880616]
[1750938552596,2.45801049,143.77,143.76,13.45180616]
[1750938553195,4.47215724,143.79,143.77,6.9522]
[1750938553386,4.47215724,143.79,143.76,6.49880616]
[1750938553593,4.47215724,143.79,143.77,6.9526]
[1750938553594,2.45792153,143.78,143.77,6.9526]
[1750938553892,4.47215724,143.79,143.76,6.49880616]
[1750938554093,2.45426011,143.78,143.77,6.9522]
[1750938554292,6.9514,143.8,143.76,6.49880616]
[1750938554493,2.45421192,143.79,143.77,6.49880616]
[1750938554695,2.45421192,143.78,143.77,6.49880616]
[1750938554994,6.9509,143.81,143.79,6.9514]
[1750938555202,14.53693458,143.8,143.77,6.49421386]
[1750938555395,2.45398422,143.79,143.77,6.49421386]
[1750938555601,2.453967,143.78,143.77,6.49421386]
[1750938556103,2.453967,143.78,143.77,13.44681386]
[1750938564712,7.59310972,143.78,143.77,6.9526]
[1750938565919,2.453967,143.78,143.77,6.9526]
[1750938568413,7.59265105,143.78,143.77,6.9526]
[1750938568819,2.453967,143.78,143.77,6.9526]
[1750938569411,2.453967,143.78,143.77,13.44681386]
[1750938571221,9.17890223,143.8,143.78,6.9518]
[1750938572623,6.9511,143.8,143.78,6.9518]
[1750938573926,5.13328752,143.79,143.78,6.9518]
[1750938574125,7.58980105,143.79,143.78,6.9518]
[1750938575829,9.81760328,143.79,143.77,6.49421386]
[1750938576129,50.15743334,143.78,143.74,6.49421386]
[1750938576323,2.22930778,143.75,143.74,6.49421386]
[1750938576530,4.68582131,143.75,143.74,13.44801386]
[1750938577028,9.62946552,143.75,143.74,13.44801386]
[1750938577425,9.62946552,143.75,143.74,6.9538]
[1750938577631,7.40015774,143.75,143.74,6.9538]
[1750938580124,2.45651353,143.75,143.74,6.9538]
[1750938582134,6.9528,143.77,143.74,6.9538]
[1750938582326,7.38752558,143.76,143.74,6.9538]
[1750938582526,6.9528,143.77,143.74,6.9538]
[1750938582827,7.38752558,143.76,143.74,6.9538]
[1750938583026,6.9528,143.77,143.74,6.9538]
[1750938583228,7.38680396,143.76,143.74,6.9538]
[1750938583427,6.9528,143.77,143.74,6.9538]
[1750938583721,7.38664514,143.76,143.74,6.9538]
[1750938584032,6.9531,143.76,143.74,6.9538]
[1750938586329,39.36302488,143.78,143.73,13.44841386]
[1750938586532,3.48302488,143.76,143.71,6.49421386]
[1750938586730,12.48278908,143.75,143.7,6.49421386]
[1750938586930,7.36711793,143.74,143.7,6.49421386]
[1750938587133,6.9538,143.75,143.72,6.9548]
[1750938587432,7.36529296,143.74,143.72,6.9548]
[1750938587633,6.9538,143.75,143.72,6.9548]
[1750938587838,12.48026483,143.74,143.72,6.9548]
[1750938588139,7.36529249,143.73,143.71,6.9552]
[1750938588440,35.54,143.76,143.7,6.49421386]
[1750938588643,19.42210626,143.75,143.72,6.9547]
[1750938588831,15.95123114,143.74,143.69,8.76901386]
[1750938589031,12.46948864,143.73,143.69,6.9561]
[1750938589231,51.49077509,143.72,143.66,6.49421386]
[1750938589540,48.00795266,143.71,143.69,6.9561]
[1750938589837,7.35513597,143.7,143.69,6.9561]
[1750938590243,35.54,143.71,143.69,6.9561]
[1750938590739,42.4956,143.71,143.69,6.9561]
[1750938590939,42.4956,143.71,143.68,6.9567]
[1750938591141,6.956,143.7,143.68,6.9567]
[1750938591447,40.62260254,143.71,143.68,6.9567]
[1750938591738,7.34443805,143.7,143.68,6.9567]
[1750938591943,47.57840254,143.71,143.68,6.9567]
[1750938592245,5.92620104,143.7,143.64,87.26961857]
[1750938592440,10.43922488,143.7,143.64,87.26961857]
[1750938592641,10.43922488,143.7,143.67,6.9574]
[1750938593041,35.54,143.71,143.63,39.02302488]
[1750938593042,3.48302488,143.68,143.63,6.49421386]
[1750938593237,3.48302488,143.68,143.65,6.9583]
[1750938593438,35.56,143.67,143.65,6.9583]
[1750938594141,35.56,143.67,143.66,6.9579]
[1750938595535,10.43922488,143.7,143.68,6.9568]
[1750938595740,35.56,143.69,143.68,6.9568]
[1750938597936,35.56,143.72,143.67,3.48302488]
[1750938598142,37.98432954,143.72,143.67,3.48302488]
[1750938598342,35.56,143.73,143.71,6.9551]
[1750938599539,42.5146,143.73,143.71,6.9551]
[1750938600242,42.5146,143.73,143.67,3.48302488]
[1750938600243,42.5146,143.73,143.7,6.9557]
[1750938601249,42.5146,143.73,143.71,6.9553]
[1750938601448,2.42395499,143.74,143.67,3.48302488]
[1750938601639,37.98395499,143.74,143.69,3.48302488]
[1750938601948,37.98395499,143.74,143.73,6.9545]
[1750938601949,35.56,143.74,143.73,6.9545]
[1750938602247,35.56,143.76,143.69,3.48302488]
[1750938602549,42.5132,143.76,143.71,3.48302488]
[1750938602845,35.56,143.76,143.71,3.48302488]
[1750938603547,35.56,143.76,143.7,2.2665]
[1750938603742,35.56,143.76,143.7,5.74952488]
[1750938605145,6.9537,143.75,143.73,6.9542]
[1750938605342,6.9537,143.75,143.7,5.74952488]
[1750938605648,6.9537,143.75,143.72,6.9547]
[1750938606854,3.48302488,143.75,143.71,6.9552]
[1750938607352,6.9541,143.74,143.71,6.9552]
[1750938608553,39.04302488,143.76,143.71,6.9552]
[1750938608746,7.33063736,143.75,143.71,6.9552]
[1750938608946,4.90093918,143.75,143.71,6.9552]
[1750938609450,6.9541,143.74,143.71,6.9552]
[1750938610448,6.9545,143.73,143.71,6.9552]
[1750938610854,6.9545,143.73,143.7,6.9557]
[1750938610855,10.43752488,143.73,143.7,6.9557]
[1750938611446,10.43752488,143.73,143.71,6.9554]
[1750938612241,3.48302488,143.73,143.66,8.78411386]
[1750938612650,44.11441244,143.76,143.66,2.2899]
[1750938612651,3.48302488,143.71,143.66,2.2899]
[1750938612956,39.30302488,143.71,143.66,2.2899]
[1750938613341,6.9562,143.7,143.67,6.957]
[1750938613548,44.20060935,143.71,143.67,6.957]
[1750938613749,39.30302488,143.71,143.67,6.957]
[1750938613942,6.956,143.7,143.67,6.957]
[1750938614139,39.30302488,143.71,143.67,6.957]
[1750938614553,44.20060935,143.71,143.67,6.957]
[1750938614952,3.48302488,143.69,143.65,6.9582]
[1750938615648,6.9573,143.68,143.65,6.9582]
[1750938616960,6.9575,143.67,143.64,6.9586]
[1750938617841,6.9572,143.68,143.65,6.9583]
[1750938619952,8.35430495,143.69,143.65,6.9583]
[1750938620153,10.44052488,143.67,143.62,44.62151386]
[1750938620457,10.77859632,143.69,143.62,44.62151386]
[1750938620657,6.9572,143.68,143.65,6.958]
[1750938621558,6.9572,143.68,143.66,6.9578]
[1750938624260,35.82,143.71,143.62,8.80151386]
[1750938624261,10.44072488,143.67,143.62,8.80151386]
[1750938624458,3.48302488,143.67,143.62,8.80151386]
[1750938624663,10.77141092,143.69,143.62,2.3073]
[1750938624864,6.957,143.68,143.65,6.9581]
[1750938625759,6.957,143.68,143.66,6.9579]
[1750938626064,6.957,143.68,143.62,8.80151386]
[1750938626254,3.48302488,143.69,143.62,8.80151386]
[1750938626563,3.48302488,143.69,143.65,6.958]
[1750938626865,6.9572,143.68,143.62,8.80151386]
[1750938627366,42.7972,143.68,143.65,6.9581]
[1750938630155,42.7972,143.68,143.66,6.9578]
[1750938631355,42.7972,143.68,143.65,6.9581]
[1750938632165,42.7972,143.68,143.66,6.9578]
[1750938633362,6.9572,143.68,143.66,6.9578]
[1750938637368,6.9572,143.68,143.67,6.9574]
[1750938637866,6.9572,143.68,143.63,6.49421386]
[1750938638074,6.9572,143.68,143.66,6.9576]
[1750938640168,6.9572,143.68,143.67,6.9574]
[1750938640370,42.7967,143.69,143.67,6.9574]
[1750938642074,35.84,143.69,143.63,6.49421386]
[1750938642270,3.48302488,143.68,143.62,8.80151386]
[1750938642777,6.9575,143.67,143.64,6.9584]
[1750938642979,6.9575,143.67,143.62,8.80151386]
[1750938643478,6.9575,143.67,143.65,6.9584]
[1750938644674,6.9579,143.66,143.62,8.80151386]
[1750938646076,6.9579,143.66,143.63,6.9592]
[1750938647374,6.9579,143.66,143.64,6.9588]
[1750938647672,6.9579,143.66,143.62,8.80151386]
[1750938648072,6.9579,143.66,143.63,6.9589]
[1750938648779,6.9584,143.65,143.63,6.9589]
[1750938648981,6.9584,143.65,143.63,13.42922369]
[1750938649282,6.9584,143.65,143.63,6.9589]
[1750938649981,3.48302488,143.64,143.6,4.7239]
[1750938650784,10.44212488,143.64,143.61,6.96]
[1750938650984,6.9591,143.64,143.6,4.7239]
[1750938651282,6.958,143.66,143.63,6.959]
[1750938651983,6.9584,143.65,143.63,6.959]
[1750938652682,6.9581,143.66,143.6,4.7239]
[1750938653078,6.9581,143.66,143.6,11.20184971]
[1750938653583,6.9581,143.66,143.63,6.9591]
[1750938655081,6.9581,143.66,143.64,6.9587]
[1750938656088,35.46,143.67,143.61,6.47794971]
[1750938656383,35.46,143.67,143.62,8.86594971]
[1750938657088,35.46,143.67,143.65,6.9581]
[1750938657284,42.4175,143.67,143.65,6.9581]
[1750938659690,35.46,143.67,143.65,6.9581]
[1750938659987,4.88236829,143.66,143.65,13.43604971]
[1750938662990,7.31564373,143.66,143.65,13.43604971]
[1750938663291,4.88236829,143.66,143.65,13.43604971]
[1750938663490,7.31559928,143.66,143.65,13.43604971]
[1750938665684,38.94302488,143.72,143.64,12.12029117]
[1750938665885,12.02643375,143.71,143.66,6.49994085]
[1750938666184,5.07063375,143.7,143.66,6.49994085]
[1750938666384,6.9558,143.71,143.66,6.49994085]
[1750938666594,5.06986824,143.7,143.66,6.49994085]
[1750938666892,6.9558,143.71,143.66,6.49994085]
[1750938667190,5.06986824,143.7,143.69,6.9564]
[1750938668286,12.02576824,143.7,143.67,6.49994085]
[1750938668587,6.9559,143.7,143.67,6.49994085]
[1750938668987,12.02519761,143.69,143.67,6.49994085]
[1750938669189,6.9566,143.69,143.66,6.49994085]
[1750938669495,6.9566,143.69,143.67,6.9574]
[1750938669990,6.9566,143.69,143.66,13.45744085]
[1750938672589,6.957,143.68,143.66,13.45744085]
[1750938674898,6.9568,143.69,143.66,13.45754085]
[1750938675700,6.957,143.68,143.66,13.45754085]
[1750938675898,3.48302488,143.7,143.67,6.9574]
[1750938676594,3.48302488,143.7,143.67,6.49994085]
[1750938676800,10.43922488,143.7,143.67,6.49994085]
[1750938677102,6.9562,143.7,143.67,6.49994085]
[1750938677299,6.9562,143.7,143.68,6.9567]
[1750938677488,639.94302488,143.74,143.67,6.49994085]
[1750938677691,9.86737272,143.73,143.68,3.48302488]
[1750938677887,9.86737272,143.73,143.72,6.955]
[1750938678602,35.28,143.74,143.72,6.955]
[1750938679701,42.2341,143.74,143.72,6.955]
[1750938680403,42.2341,143.74,143.71,6.9552]
[1750938680604,42.2341,143.74,143.68,9.98296573]
[1750938681002,35.28,143.74,143.68,9.98296573]
[1750938681206,35.28,143.74,143.69,6.49994085]
[1750938681405,35.28,143.74,143.7,6.49994085]
[1750938682106,35.28,143.74,143.73,6.9545]
[1750938682606,42.2341,143.74,143.72,6.9547]
[1750938682903,42.2341,143.74,143.7,6.49994085]
[1750938683308,42.2341,143.74,143.71,6.9551]
[1750938684406,6.9541,143.74,143.71,6.9551]
[1750938684804,6.9546,143.73,143.71,6.9551]
[1750938685708,3.48302488,143.79,143.71,3.48302488]
[1750938685908,9.89405864,143.78,143.71,9.98296573]
[1750938686105,40.08913389,143.77,143.74,6.9536]
[1750938686308,35.28,143.77,143.74,6.9536]
[1750938686720,38.76302488,143.77,143.71,6.49994085]
[1750938686919,3.48302488,143.75,143.69,6.49994085]
[1750938687417,3.48302488,143.75,143.73,6.9545]
[1750938687611,3.48302488,143.77,143.7,3.48302488]
[1750938687807,35.28,143.75,143.74,6.9538]
[1750938689518,35.28,143.76,143.75,6.9535]
[1750938692516,35.28,143.76,143.74,6.9538]
[1750938692928,35.28,143.76,143.7,9.98296573]
[1750938693217,35.28,143.76,143.75,6.9535]
[1750938694217,35.26,143.78,143.72,3.48302488]
[1750938695230,35.26,143.78,143.76,6.9526]
[1750938696029,42.2121,143.78,143.76,6.9526]
[1750938696921,6.9526,143.77,143.71,8.87384085]
[1750938697116,6.9526,143.77,143.71,12.35686573]
[1750938697427,3.48302488,143.76,143.68,9.98296573]
[1750938697627,6.9542,143.74,143.68,9.98296573]
[1750938698126,6.9546,143.73,143.7,6.9556]
[1750938698329,3.48302488,143.76,143.68,9.98296573]
[1750938698819,6.9543,143.74,143.71,6.9551]
[1750938699020,42.2143,143.74,143.71,6.9551]
[1750938700430,35.26,143.74,143.7,3.48302488]
[1750938701630,35.26,143.75,143.73,6.9542]
[1750938702527,42.2135,143.75,143.73,6.9542]
[1750938702729,35.26,143.75,143.73,6.9542]
[1750938703331,35.26,143.75,143.74,6.954]
[1750938704324,40.24729789,143.78,143.72,3.48302488]
[1750938704525,39.95871029,143.78,143.72,3.48302488]
[1750938704725,39.95871029,143.78,143.74,3.48302488]
[1750938705134,35.14,143.78,143.74,3.48302488]
[1750938705933,35.14,143.81,143.76,3.48302488]
[1750938706126,4.81896499,143.8,143.76,3.48302488]
[1750938706725,39.95896499,143.81,143.76,3.48302488]
[1750938707324,46.90976499,143.81,143.79,6.9514]
[1750938707528,46.90976499,143.81,143.76,3.48302488]
[1750938708432,6.9511,143.8,143.78,6.9517]
[1750938709037,46.90986499,143.81,143.78,6.9517]
[1750938709437,42.0909,143.81,143.78,6.9517]
[1750938709631,6.9511,143.8,143.78,6.9517]
[1750938711438,42.0908,143.81,143.78,6.9517]
[1750938711837,35.14,143.81,143.78,6.9517]
[1750938712640,6.9512,143.8,143.78,6.9517]
[1750938712937,38.62302488,143.81,143.74,3.48302488]
[1750938713140,9.97041521,143.8,143.72,12.46076573]
[1750938713331,6.9523,143.78,143.75,6.9531]
[1750938713531,6.9523,143.78,143.72,12.46076573]
[1750938715046,6.9518,143.79,143.72,12.46076573]
[1750938715838,6.9521,143.78,143.76,6.9527]
[1750938716040,5.13439272,143.8,143.74,3.48302488]
[1750938716339,38.62302488,143.81,143.77,6.9522]
[1750938717241,6.9513,143.8,143.78,6.952]
[1750938717539,38.62302488,143.81,143.74,3.48302488]
[1750938717735,4.85404567,143.8,143.74,3.48302488]
[1750938717937,6.9517,143.79,143.77,6.9523]
[1750938718841,11.79530161,143.8,143.78,6.952]
[1750938719041,6.9513,143.8,143.78,6.952]
[1750938719533,42.0909,143.81,143.78,6.952]
[1750938719737,9.99338374,143.8,143.78,6.952]
[1750938719942,42.0909,143.81,143.78,6.952]
[1750938720241,4.84592556,143.8,143.79,6.9515]
[1750938720442,4.84592556,143.8,143.74,6.49994085]
[1750938720639,35.14,143.81,143.74,6.49994085]
[1750938720640,42.0909,143.81,143.78,6.9516]
[1750938720827,4.84814138,143.8,143.78,6.9516]
[1750938721028,42.0909,143.81,143.76,3.48302488]
[1750938721239,4.84814138,143.8,143.79,6.9516]
[1750938721436,4.84814138,143.8,143.76,3.48302488]
[1750938721437,16.9513298,143.8,143.76,3.48302488]
[1750938721634,35.14,143.81,143.78,6.9517]
[1750938721831,10.00265951,143.8,143.78,6.9517]
[1750938722134,42.0909,143.81,143.78,6.9517]
[1750938722444,10.00223355,143.8,143.78,6.9517]
[1750938722647,42.0909,143.81,143.78,6.9517]
[1750938722834,10.00223355,143.8,143.79,6.9516]
[1750938724245,5.15186902,143.8,143.79,6.9516]
[1750938724440,35.14,143.81,143.8,6.9511]
[1750938724636,40.00183268,143.81,143.8,6.9511]
[1750938725339,4.86183268,143.81,143.8,6.9511]
[1750938726548,35.14,143.83,143.81,6.9505]
[1750938727249,35.14,143.83,143.82,6.9501]
[1750938727644,42.0897,143.83,143.81,6.9504]
[1750938728045,4.87929112,143.82,143.78,3.48302488]
[1750938728248,35.14,143.83,143.78,3.48302488]
[1750938728453,4.87856613,143.82,143.78,3.48302488]
[1750938728745,35.14,143.83,143.77,12.42556573]
[1750938729047,10.05549836,143.82,143.76,8.95604085]
[1750938729248,10.05549836,143.81,143.76,8.95604085]
[1750938729450,6.9509,143.81,143.76,2.4561]
[1750938729849,6.9511,143.8,143.78,6.9517]
[1750938730154,6.9511,143.8,143.75,41.63994085]
[1750938732157,6.9511,143.8,143.77,6.9521]
[1750938732355,6.9511,143.8,143.75,41.63994085]
[1750938732556,6.9511,143.8,143.75,35.14]
[1750938733557,6.9511,143.8,143.78,6.952]
[1750938738062,6.9509,143.81,143.78,6.952]
[1750938738357,10.05694611,143.8,143.78,6.952]
[1750938738557,6.951,143.81,143.78,6.952]
[1750938738762,4.8766225,143.8,143.78,6.952]
[1750938738960,6.951,143.81,143.78,6.952]
[1750938739362,4.8764438,143.8,143.78,6.952]
[1750938739558,6.951,143.81,143.78,6.952]
[1750938740461,11.8275438,143.8,143.78,6.952]
[1750938741462,6.9511,143.8,143.78,6.952]
[1750938741950,6.9519,143.79,143.76,6.9528]
[1750938742156,42.2119,143.79,143.76,6.9528]
[1750938743066,42.2119,143.79,143.74,6.49994085]
[1750938743364,42.2119,143.79,143.73,3.48302488]
[1750938743365,42.2119,143.79,143.75,6.49994085]
[1750938743868,42.2119,143.79,143.76,6.9527]
[1750938744867,42.2119,143.79,143.77,6.9524]
[1750938746459,35.26,143.79,143.75,6.49994085]
[1750938746669,35.26,143.79,143.76,6.49994085]
[1750938747061,6.9509,143.81,143.76,6.49994085]
[1750938747262,10.0506082,143.8,143.77,9.98296573]
[1750938747468,6.9504,143.82,143.79,6.9512]
[1750938747662,10.05297616,143.81,143.79,6.9512]
[1750938747861,10.05297616,143.8,143.79,6.9512]
[1750938755273,10.05297616,143.8,143.78,6.9521]
[1750938755473,4.87764394,143.79,143.78,6.9521]
[1750938755875,10.07563563,143.79,143.78,6.9521]
[1750938762394,4.87764394,143.79,143.78,13.45204085]
[1750938764198,35.26,143.81,143.8,6.9511]
[1750938764397,45.28269237,143.81,143.8,6.9511]
[1750938764596,10.02269237,143.81,143.8,6.9511]
[1750938767901,16.97329237,143.81,143.79,6.9513]
[1750938768193,10.02269237,143.8,143.79,6.9513]
[1750938770403,10.03466868,143.8,143.79,6.9513]
[1750938776412,10.04068823,143.8,143.79,6.9513]
[1750938778411,10.0353947,143.8,143.79,6.9513]
[1750938783514,6.9494,143.84,143.82,6.9497]
[1750938783712,35.34,143.85,143.79,6.48804711]
[1750938784215,6.9499,143.83,143.81,6.9504]
[1750938786218,9.17673267,143.83,143.81,6.9504]
[1750938789218,6.9499,143.83,143.81,6.9504]
[1750938789418,9.17673267,143.83,143.81,6.9504]
[1750938790021,2.22683267,143.82,143.78,6.48804711]
[1750938790221,2.22683267,143.81,143.78,6.48804711]
[1750938790618,9.17773267,143.81,143.78,6.48804711]
[1750938790822,9.17842795,143.81,143.78,6.48804711]
[1750938791417,2.22752795,143.81,143.78,13.43974711]
[1750938791922,9.17842795,143.81,143.79,6.9513]
[1750938793522,9.17842795,143.81,143.78,13.43994711]
[1750938794321,9.17842795,143.81,143.79,6.9515]
[1750938795123,9.17792795,143.82,143.8,6.9511]
[1750938795516,9.79205783,143.81,143.8,6.9511]
[1750938797726,9.79205783,143.81,143.8,9.17862795]
[1750938798126,9.79205783,143.81,143.8,9.17759338]
[1750938798330,4.69900511,143.81,143.8,9.17759338]
[1750938798531,4.69900511,143.81,143.8,15.66564049]
[1750938799226,42.0894,143.84,143.82,6.9501]
[1750938799527,9.7908704,143.83,143.82,6.9501]
[1750938801022,9.7908704,143.83,143.82,9.17659338]
[1750938801222,9.17489338,143.86,143.84,6.949]
[1750938801427,9.7846953,143.85,143.84,6.949]
[1750938804734,46.68569338,143.88,143.86,6.9481]
[1750938804935,9.78816246,143.87,143.86,6.9481]
[1750938805825,9.17249338,143.91,143.88,6.9472]
[1750938806029,9.80207321,143.9,143.89,2.22649338]
[1750938806227,35.14,143.92,143.89,6.48804711]
[1750938806542,35.14,143.92,143.9,6.9461]
[1750938806735,40.91443213,143.95,143.88,3.47443213]
[1750938806926,6.9438,143.96,143.93,6.9448]
[1750938807424,6.9438,143.96,143.9,35.14]
[1750938807425,16.71455706,143.95,143.9,35.14]
[1750938807632,11.62531155,143.95,143.92,6.9452]
[1750938807825,13.26817184,143.97,143.9,35.14]
[1750938808034,16.73733971,143.96,143.9,35.14]
[1750938808333,16.72757249,143.96,143.93,6.9445]
[1750938808723,16.72757249,143.96,143.9,35.14]
[1750938808929,6.9443,143.95,143.92,6.9453]
[1750938809728,6.9444,143.94,143.92,6.9453]
[1750938810132,13.24936243,143.97,143.92,6.9453]
[1750938810434,6.9442,143.95,143.92,6.9453]
[1750938811932,6.9442,143.95,143.9,35.14]
[1750938811933,3.47443213,143.97,143.93,6.9445]
[1750938812938,6.9435,143.96,143.93,6.9445]
[1750938814323,3.47443213,143.95,143.86,6.48804711]
[1750938814532,3.47443213,143.93,143.86,35.12]
[1750938815037,10.41953213,143.93,143.9,6.9461]
[1750938815241,35.12,143.94,143.9,6.9461]
[1750938815435,6.9451,143.93,143.9,6.9461]
[1750938815938,6.9456,143.92,143.89,6.9466]
[1750938816134,3.47443213,143.92,143.86,38.59443213]
[1750938816341,3.47443213,143.92,143.88,6.947]
[1750938816535,6.946,143.91,143.88,6.947]
[1750938816732,3.47443213,143.92,143.86,35.12]
[1750938817340,10.42013213,143.92,143.89,6.9465]